fUSD/lending_fUSD_20240513
["ID","MTS","AMOUNT","RATE_DAILY","PERIOD"]
[326913724,1715568640426,-320.88682059,0.00012979,2]
[326913725,1715568640435,-11.99456105,0.00012979,2]
[326913726,1715568640696,-488.00543895,0.00012979,2]
[326913727,1715568640706,-500.0,0.00012979,2]
[326913728,1715568640717,-500.0,0.00012979,2]
[326913729,1715568640727,-500.0,0.00012979,2]
[326913730,1715568640738,-500.0,0.00012979,2]
[326913731,1715568640747,-154.14477441,0.00012979,2]
[326913744,1715568642953,-345.85522559,0.00012979,2]
[326913746,1715568642963,-183.43784179,0.00012979,2]
[326913748,1715568642972,-332.71693242,0.00012979,2]
[326913751,1715568642983,-167.28306758,0.00012979,2]
[326913754,1715568642993,-500.0,0.00012979,2]
[326913757,1715568643002,-500.0,0.00012979,2]
[326913759,1715568643011,-287.71693242,0.00012979,2]
[326913780,1715568643279,-212.28306758,0.00012979,2]
[326913781,1715568643288,-500.0,0.00012979,2]
[326913782,1715568643298,-500.0,0.00012979,2]
[326913783,1715568643307,-500.0,0.00012979,2]
[326913784,1715568643317,-535.17243217,0.00012979,2]
[326913785,1715568643326,-500.0,0.00012979,2]
[326913786,1715568643335,-500.0,0.00012979,2]
[326913787,1715568643344,-500.0,0.00012979,2]
[326913788,1715568643353,-500.0,0.00012979,2]
[326913789,1715568643362,-500.0,0.00012979,2]
[326913790,1715568643371,-500.0,0.00012979,2]
[326913791,1715568643380,-500.0,0.00012979,2]
[326913792,1715568643389,-266.58903322,0.00012979,2]
[326913793,1715568643398,-909.0,0.0001298,2]
[326913794,1715568643407,-87111.70620846,0.0001298,2]
[326913795,1715568643418,-9883.21025482,0.0001298,2]
[326913796,1715568643429,-292.44789059,0.0001298,2]
[326913797,1715568643441,-887.44060328,0.0001298,2]
[326913798,1715568643452,-1376.75454,0.0001298,2]
[326913799,1715568643463,-1716.24579306,0.0001298,2]
[326913801,1715568643766,-3465.7968536,0.00012978,2]
[326913836,1715568646089,-1534.2031464,0.00012978,2]
[326913837,1715568646099,-19592.81259257,0.00012978,2]
[326913839,1715568646108,-656.01389756,0.00012978,2]
[326913841,1715568646117,-95023.49039329,0.0001298,2]
[326913851,1715568646507,-388.0531528,0.0001298,2]
[326913855,1715568646518,-455.61610913,0.0001298,2]
[326913858,1715568646529,-812.66100795,0.0001298,2]
[326913861,1715568646540,-14129.23634531,0.0001298,2]
[326913864,1715568646550,-285548.0799622,0.0001298,2]
[326913867,1715568646561,-2187.35598326,0.0001298,2]
[326913938,1715568962292,160.04,9.421e-05,2]
[326913965,1715569833970,-836.74867698,0.00011356,2]
[326913970,1715569833983,-2222.16212975,0.00011356,2]
[326913972,1715569833993,-428.20829024,0.00011356,2]
[326913974,1715569834003,-656.01389756,0.00011357,2]
[326913976,1715569834012,-168.59415907,0.00011368,2]
[326913978,1715569834023,-625.02152338,0.00011669,2]
[326913980,1715569834035,-1874.97847662,0.00011669,2]
[326913982,1715569834044,-150.0,0.00011699,2]
[326913984,1715569834054,-150.0,0.00011699,2]
[326913986,1715569834063,-2254.22188273,0.000117,2]
[326913988,1715569834073,-315.09,0.00011709,2]
[326913990,1715569834086,-13985.67,0.00011715,2]
[326913992,1715569834095,-178.33,0.00011716,2]
[326913994,1715569834104,-499.99,0.00011716,2]
[326913996,1715569834114,-1000.0,0.00011717,2]
[326913998,1715569834125,-250.0,0.00011729,2]
[326914000,1715569834135,-182.05,0.0001175,2]
[326914002,1715569834144,-457.39909841,0.00012,2]
[326914004,1715569834156,-5000.0,0.00012077,2]
[326914006,1715569834166,-2500.0,0.00012078,2]
[326914008,1715569834175,-3651.654,0.00012175,2]
[326914010,1715569834184,-3673.81,0.00012175,2]
[326914012,1715569834193,-3685.212,0.00012176,2]
[326914014,1715569834202,-3690.042,0.00012178,2]
[326914016,1715569834212,-3709.065,0.00012179,2]
[326914018,1715569834222,-151.21,0.00012278,2]
[326914020,1715569834231,-150.22,0.00012278,2]
[326914022,1715569834240,-150.64,0.00012278,2]
[326914024,1715569834250,-150.0,0.00012278,2]
[326914026,1715569834259,-150.0,0.00012278,2]
[326914027,1715569834268,-162.16,0.00012278,2]
[326914029,1715569834277,-150.0,0.00012278,2]
[326914030,1715569834287,-3610.466,0.00012348,2]
[326914031,1715569834296,-3680.223,0.00012397,2]
[326914032,1715569834306,-3685.26,0.00012412,2]
[326914033,1715569834316,-1494.10294636,0.00012413,2]
[326914034,1715569834325,-27235.9763,0.00012414,2]
[326914035,1715569834334,-1223.4996,0.00012414,2]
[326914036,1715569834344,-156.44,0.00012478,2]
[326914037,1715569834353,-150.0,0.00012478,2]
[326914038,1715569834362,-163.31,0.00012478,2]
[326914039,1715569834372,-353.05,0.00012478,2]
[326914040,1715569834382,-422.8,0.00012478,2]
[326914042,1715569834392,-564.87,0.00012478,2]
[326914044,1715569834401,-523.56,0.00012478,2]
[326914046,1715569834411,-163.31,0.00012478,2]
[326914048,1715569834421,-150.0,0.00012478,2]
[326914049,1715569834430,-150.0,0.00012478,2]
[326914051,1715569834440,-420.36,0.00012478,2]
[326914053,1715569834449,-351.48,0.00012478,2]
[326914055,1715569834459,-150.0,0.00012478,2]
[326914057,1715569834470,-420.36,0.00012478,2]
[326914059,1715569834480,-523.56,0.00012478,2]
[326914061,1715569834489,-150.0,0.00012478,2]
[326914063,1715569834499,-163.31,0.00012478,2]
[326914064,1715569834508,-150.0,0.00012478,2]
[326914066,1715569834519,-150.0,0.00012478,2]
[326914068,1715569834528,-351.48,0.00012478,2]
[326914070,1715569834537,-420.36,0.00012478,2]
[326914072,1715569834547,-351.48,0.00012478,2]
[326914074,1715569834556,-150.0,0.00012478,2]
[326914076,1715569834566,-163.31,0.00012478,2]
[326914078,1715569834575,-500.0,0.00012671,2]
[326914080,1715569834584,-155.0,0.00012679,2]
[326914082,1715569834594,-543.0,0.0001268,2]
[326914084,1715569834603,-162.983,0.0001268,2]
[326914086,1715569834613,-633.058,0.0001268,2]
[326914087,1715569834623,-5911.0,0.0001268,2]
[326914089,1715569834632,-1463.0,0.0001268,2]
[326914091,1715569834642,-500.0,0.0001268,2]
[326914093,1715569834651,-500.0,0.00012689,2]
[326914095,1715569834661,-500.0,0.00012698,2]
[326914097,1715569834670,-500.0,0.00012706,2]
[326914099,1715569834680,-150.0,0.00012714,2]
[326914101,1715569834689,-500.0,0.00012715,2]
[326914103,1715569834699,-150.0,0.00012719,2]
[326914105,1715569834708,-500.0,0.00012724,2]
[326914106,1715569834719,-500.0,0.00012733,2]
[326914108,1715569834728,-150.0,0.00012735,2]
[326914110,1715569834738,-150.0,0.00012738,2]
[326914112,1715569834747,-500.0,0.00012742,2]
[326914114,1715569834757,-150.0,0.00012744,2]
[326914116,1715569834766,-150.0,0.00012747,2]
[326914118,1715569834776,-500.0,0.0001275,2]
[326914120,1715569834786,-150.0,0.00012752,2]
[326914122,1715569834795,-500.0,0.00012759,2]
[326914124,1715569834804,-150.0,0.0001276,2]
[326914125,1715569834813,-150.0,0.00012766,2]
[326914127,1715569834823,-500.0,0.00012768,2]
[326914129,1715569834832,-150.0,0.00012771,2]
[326914131,1715569834842,-500.0,0.00012777,2]
[326914133,1715569834851,-500.0,0.00012786,2]
[326914134,1715569834860,-150.0,0.00012794,2]
[326914135,1715569834870,-500.0,0.00012794,2]
[326914136,1715569834880,-150.0,0.00012803,2]
[326914137,1715569834889,-500.0,0.00012803,2]
[326914138,1715569834899,-241.42868323,0.00012805,2]
[326914139,1715569834908,-150.0,0.00012811,2]
[326914140,1715569834918,-500.0,0.00012812,2]
[326914141,1715569834928,-500.0,0.00012821,2]
[326914142,1715569834937,-150.0,0.00012822,2]
[326914143,1715569834947,-150.0,0.00012825,2]
[326914144,1715569834957,-500.0,0.0001283,2]
[326914145,1715569834969,-500.0,0.00012838,2]
[326914146,1715569834979,-500.0,0.00012847,2]
[326914147,1715569834988,-252.70297756,0.00012848,2]
[326914148,1715569834997,-12646.59177514,0.0001285,2]
[326914149,1715569835007,-402.68056747,0.0001285,2]
[326914150,1715569835016,-150.0,0.00012855,2]
[326914151,1715569835026,-150.0,0.00012855,2]
[326914152,1715569835036,-500.0,0.00012856,2]
[326914153,1715569835045,-500.0,0.00012865,2]
[326914154,1715569835055,-150.0,0.00012869,2]
[326914155,1715569835065,-175.78481673,0.0001287,2]
[326914156,1715569835079,-150.0,0.0001287,2]
[326914157,1715569835089,-326.16560859,0.0001287,2]
[326914158,1715569835100,-789.5013,0.0001287,2]
[326914159,1715569835110,-2500.0,0.0001287,2]
[326914160,1715569835120,-150.0,0.00012871,2]
[326914161,1715569835129,-500.0,0.00012874,2]
[326914162,1715569835139,-150.0,0.00012875,2]
[326914163,1715569835148,-150.0,0.00012875,2]
[326914164,1715569835162,-500.0,0.00012875,2]
[326914165,1715569835173,-506.40213255,0.00012876,2]
[326914166,1715569835182,-500.0,0.00012876,2]
[326914167,1715569835191,-547.94387404,0.00012876,2]
[326914168,1715569835201,-1000.0,0.00012876,2]
[326914169,1715569835210,-500.0,0.00012876,2]
[326914170,1715569835220,-2390.6785,0.0001288,2]
[326914171,1715569835230,-393.9654,0.0001288,2]
[326914172,1715569835240,-3777.0787,0.0001288,2]
[326914173,1715569835249,-853.13773106,0.0001288,2]
[326914174,1715569835259,-300.69120765,0.0001288,2]
[326914175,1715569835269,-853.13773096,0.00012882,2]
[326914176,1715569835279,-500.0,0.00012882,2]
[326914177,1715569835288,-853.13773096,0.00012884,2]
[326914178,1715569835297,-853.13773096,0.00012885,2]
[326914179,1715569835307,-853.13773096,0.00012887,2]
[326914180,1715569835316,-150.0,0.00012888,2]
[326914181,1715569835326,-853.13773096,0.00012889,2]
[326914182,1715569835335,-853.13773096,0.00012891,2]
[326914183,1715569835343,-500.0,0.00012891,2]
[326914184,1715569835353,-853.13773096,0.00012893,2]
[326914185,1715569835362,-853.13773096,0.00012895,2]
[326914186,1715569835371,-150.0,0.00012896,2]
[326914187,1715569835380,-853.13773096,0.00012896,2]
[326914188,1715569835390,-150.0,0.00012898,2]
[326914189,1715569835400,-853.13773096,0.00012898,2]
[326914190,1715569835409,-853.13773096,0.000129,2]
[326914191,1715569835419,-150.0,0.00012905,2]
[326914192,1715569835428,-150.0,0.00012905,2]
[326914193,1715569835437,-150.0,0.00012905,2]
[326914194,1715569835447,-150.0,0.00012908,2]
[326914195,1715569835457,-150.0,0.00012912,2]
[326914196,1715569835468,-150.0,0.00012913,2]
[326914197,1715569835478,-150.0,0.00012917,2]
[326914198,1715569835487,-150.0,0.00012918,2]
[326914199,1715569835497,-150.0,0.0001292,2]
[326914200,1715569835506,-150.0,0.00012922,2]
[326914201,1715569835516,-150.0,0.00012923,2]
[326914202,1715569835525,-150.0,0.00012923,2]
[326914203,1715569835536,-150.0,0.00012927,2]
[326914204,1715569835545,-150.0,0.00012931,2]
[326914205,1715569835555,-150.0,0.00012935,2]
[326914206,1715569835564,-150.0,0.0001294,2]
[326914207,1715569835574,-150.0,0.0001294,2]
[326914208,1715569835583,-150.0,0.00012941,2]
[326914209,1715569835592,-150.0,0.00012952,2]
[326914210,1715569835601,-150.0,0.00012955,2]
[326914211,1715569835610,-150.0,0.00012957,2]
[326914212,1715569835619,-150.0,0.00012965,2]
[326914213,1715569835628,-150.0,0.00012965,2]
[326914214,1715569835637,-11264.4,0.00012966,2]
[326914215,1715569835646,-4592.06779707,0.00012966,2]
[326914216,1715569835655,-150.0,0.00012967,2]
[326914217,1715569835664,-157.051312,0.00012968,2]
[326914218,1715569835673,-157.051312,0.00012968,2]
[326914219,1715569835683,-157.051312,0.00012968,2]
[326914220,1715569835692,-157.051312,0.00012968,2]
[326914221,1715569835701,-157.051312,0.00012968,2]
[326914222,1715569835710,-157.051312,0.00012968,2]
[326914223,1715569835720,-157.051312,0.00012968,2]
[326914224,1715569835729,-157.051312,0.00012968,2]
[326914225,1715569835739,-157.051312,0.00012968,2]
[326914226,1715569835748,-500.0,0.00012969,2]
[326914227,1715569835758,-539.26060168,0.00012969,2]
[326914228,1715569835767,-505.56484883,0.00012969,2]
[326914229,1715569835777,-507.87873531,0.00012969,2]
[326914230,1715569835787,-501.86616668,0.00012969,2]
[326914231,1715569835796,-501.44279089,0.00012969,2]
[326914232,1715569835806,-504.59625761,0.00012969,2]
[326914233,1715569835816,-500.0,0.00012969,2]
[326914234,1715569835825,-500.0,0.00012969,2]
[326914235,1715569835834,-500.0,0.00012969,2]
[326914236,1715569835843,-500.0,0.00012969,2]
[326914237,1715569835853,-6260.36,0.00012969,2]
[326914238,1715569835862,-565.84691685,0.00012969,2]
[326914239,1715569835871,-500.0,0.00012969,2]
[326914240,1715569835880,-504.27751027,0.00012969,2]
[326914241,1715569835890,-500.0,0.00012969,2]
[326914242,1715569835899,-500.0,0.00012969,2]
[326914243,1715569835909,-135029.10221011,0.0001297,2]
[326914244,1715569835928,-114970.89778989,0.0001297,2]
[326914245,1715569835940,-150.0,0.0001297,2]
[326914246,1715569835953,-150.0,0.0001297,2]
[326914247,1715569835964,-3440.0115395,0.00012971,2]
[326914248,1715569835976,-2683.3915633,0.00012971,2]
[326914249,1715569835987,-1926.771587,0.00012971,2]
[326914250,1715569835998,-1170.1516108,0.00012971,2]
[326914251,1715569836009,-413.5316345,0.00012971,2]
[326914252,1715569836020,-150.0,0.00012974,2]
[326914253,1715569836032,-4196.6315157,0.00012975,2]
[326914254,1715569836042,-536.17869307,0.00012977,2]
[326914255,1715569836052,-500.0,0.00012977,2]
[326914256,1715569836063,-500.0,0.00012977,2]
[326914257,1715569836073,-6260.36,0.00012977,2]
[326914258,1715569836087,-500.0,0.00012977,2]
[326914259,1715569836098,-471.25422785,0.00012977,2]
[326914260,1715569836111,-521.59083319,0.00012978,2]
[326914261,1715569836123,-290.79508763,0.00012978,2]
[326914262,1715569836134,-1371.63092943,0.00012978,2]
[326914263,1715569836145,-788.18220101,0.00012978,2]
[326914264,1715569836156,-155.34028993,0.00012978,2]
[326914265,1715569836168,-1274.49413332,0.00012978,2]
[326914266,1715569836179,-165.17087898,0.00012978,2]
[326914267,1715569836190,-155.0,0.00012978,2]
[326914268,1715569836201,-304.30621889,0.00012978,2]
[326914269,1715569836213,-320.95413161,0.00012978,2]
[326914270,1715569836225,-536.80327142,0.00012978,2]
[326914271,1715569836236,-1139.43274166,0.00012978,2]
[326914272,1715569836246,-156.34146276,0.00012978,2]
[326914273,1715569836257,-2231.0261704,0.00012978,2]
[326914274,1715569836268,-318.9213978,0.00012978,2]
[326914275,1715569836279,-155.27629211,0.00012978,2]
[326914276,1715569836290,-5290.85798694,0.00012978,2]
[326914277,1715569836302,-155.77854877,0.00012978,2]
[326914278,1715569836313,-155.61191903,0.00012978,2]
[326914279,1715569836324,-208.17791052,0.00012978,2]
[326914280,1715569836335,-155.64573946,0.00012978,2]
[326914281,1715569836346,-156.7640109,0.00012978,2]
[326914282,1715569836356,-212.95826661,0.00012978,2]
[326914283,1715569836367,-290.42894301,0.00012978,2]
[326914284,1715569836377,-156.34895342,0.00012978,2]
[326914285,1715569836387,-1311.36343129,0.00012978,2]
[326914286,1715569836397,-155.15556806,0.00012978,2]
[326914287,1715569836407,-204.71776949,0.00012978,2]
[326914288,1715569836418,-2206.56381268,0.00012978,2]
[326914289,1715569836429,-8396.94360198,0.00012978,2]
[326914290,1715569836440,-216.54639568,0.00012978,2]
[326914291,1715569836451,-155.23958239,0.00012978,2]
[326914292,1715569836461,-207.85428579,0.00012978,2]
[326914293,1715569836472,-155.0,0.00012978,2]
[326914294,1715569836483,-686.89155572,0.00012978,2]
[326914295,1715569836497,-500.05224,0.00012978,2]
[326914296,1715569836510,-252.42800732,0.00012978,2]
[326914297,1715569836520,-165.20671666,0.00012978,2]
[326914298,1715569836551,-310.42354718,0.00012978,2]
[326914299,1715569836561,-296.27545139,0.00012978,2]
[326914300,1715569836571,-1998.06206585,0.00012978,2]
[326914301,1715569836581,-1252.23404788,0.00012978,2]
[326914302,1715569836590,-3533.63059213,0.00012978,2]
[326914303,1715569836600,-1000.0,0.00012978,2]
[326914304,1715569836610,-155.0,0.00012978,2]
[326914305,1715569836621,-162.04965122,0.00012978,2]
[326914306,1715569836631,-157.051312,0.00012978,2]
[326914307,1715569836642,-157.051312,0.00012978,2]
[326914308,1715569836652,-157.051312,0.00012978,2]
[326914309,1715569836663,-150.0,0.00012978,2]
[326914310,1715569836673,-467.33494077,0.00012978,2]
[326914311,1715569836684,-252.23371191,0.00012978,2]
[326914312,1715569836695,-500.0,0.00012978,2]
[326914313,1715569836706,-367.81275182,0.00012978,2]
[326914314,1715569836718,-500.0,0.00012978,2]
[326914315,1715569836729,-3656.318,0.00012978,2]
[326914316,1715569836740,-1473.46252642,0.00012979,2]
[326914317,1715569836753,-2137.31047358,0.00012979,2]
[326914318,1715569836763,-500.0,0.00012979,2]
[326914319,1715569836775,-252.48952642,0.00012979,2]
[326914320,1715569836788,-247.51047358,0.00012979,2]
[326914321,1715569836799,-187.48952642,0.00012979,2]
[326914322,1715569836812,-312.51047358,0.00012979,2]
[326914323,1715569836823,-217.84901699,0.00012979,2]
[326914324,1715569836834,-198.56168375,0.00012979,2]
[326914325,1715569836848,-127.19152552,0.00012979,2]
[326914326,1715569836859,-297.35474492,0.00012979,2]
[326914327,1715569836871,-202.64525508,0.00012979,2]
[326914328,1715569836881,-500.0,0.00012979,2]
[326914329,1715569836891,-500.0,0.00012979,2]
[326914330,1715569836901,-500.0,0.00012979,2]
[326914331,1715569836911,-472.80847448,0.00012979,2]
[326914333,1715569838011,-209.48027963,0.00011355,2]
[326914335,1715569838023,-665.99242083,0.00012965,2]
[326914337,1715569838033,-27.19152552,0.00012979,2]
[326914339,1715569838043,-500.0,0.00012979,2]
[326914341,1715569838054,-500.0,0.00012979,2]
[326914342,1715569838064,-500.0,0.00012979,2]
[326914344,1715569838075,-500.0,0.00012979,2]
[326914346,1715569838086,-585.18249823,0.00012979,2]
[326914348,1715569838097,-500.0,0.00012979,2]
[326914350,1715569838107,-500.0,0.00012979,2]
[326914351,1715569838116,-500.0,0.00012979,2]
[326914353,1715569838127,-500.0,0.00012979,2]
[326914354,1715569838137,-500.0,0.00012979,2]
[326914355,1715569838147,-500.0,0.00012979,2]
[326914356,1715569838159,-500.0,0.00012979,2]
[326914357,1715569838169,-500.0,0.00012979,2]
[326914358,1715569838179,-6260.36,0.00012979,2]
[326914359,1715569838189,-6260.36,0.00012979,2]
[326914360,1715569838199,-6260.36,0.00012979,2]
[326914361,1715569838210,-6260.36,0.00012979,2]
[326914362,1715569838225,-6260.36,0.00012979,2]
[326914363,1715569838235,-6260.36,0.00012979,2]
[326914364,1715569838246,-6260.36,0.00012979,2]
[326914365,1715569838256,-1562.56513384,0.00012979,2]
[326914366,1715569838356,-261.83144786,0.00012979,2]
[326914380,1715569840412,-620.93428381,0.000129,2]
[326914381,1715569840422,-2186.11578774,0.00012979,2]
[326914382,1715569840435,-2249.84763056,0.00012979,2]
[326914383,1715569840445,-6260.36,0.00012979,2]
[326914384,1715569840456,-6260.36,0.00012979,2]
[326914385,1715569840467,-6260.36,0.00012979,2]
[326914386,1715569840477,-6260.36,0.00012979,2]
[326914387,1715569840487,-6260.36,0.00012979,2]
[326914388,1715569840497,-6260.36,0.00012979,2]
[326914389,1715569840507,-6260.36,0.00012979,2]
[326914390,1715569840517,-6260.36,0.00012979,2]
[326914391,1715569840527,-6260.36,0.00012979,2]
[326914392,1715569840536,-6260.36,0.00012979,2]
[326914393,1715569840546,-6260.36,0.00012979,2]
[326914394,1715569840556,-6260.36,0.00012979,2]
[326914395,1715569840566,-6260.36,0.00012979,2]
[326914396,1715569840576,-6260.42125423,0.00012979,2]
[326914397,1715569840586,-500.0,0.00012979,2]
[326914398,1715569840595,-500.0,0.00012979,2]
[326914399,1715569840605,-500.0,0.00012979,2]
[326914400,1715569840615,-500.0,0.00012979,2]
[326914401,1715569840625,-455.41087651,0.00012979,2]
[326914402,1715569840635,-562.1947245,0.00012979,2]
[326914403,1715569840645,-822.0,0.0001298,2]
[326914404,1715569840654,-4496.48639743,0.0001298,2]
[326914523,1715569843463,-335.08080647,0.00012719,2]
[326914582,1715570603370,-1703.73920044,0.00010958,2]
[326914583,1715570603394,-175.94,0.00010959,2]
[326914584,1715570603415,-879.73,0.00010959,2]
[326914585,1715570603435,-159.77384697,0.00011292,2]
[326914586,1715570603456,-250.0,0.00011391,2]
[326914587,1715570603478,-1041.564843,0.00011425,2]
[326914588,1715570603499,-487.74,0.00011517,2]
[326914589,1715570603521,-173.93,0.00011533,2]
[326914590,1715570603543,-150.0,0.00011563,2]
[326914591,1715570603566,-5977.58210959,0.00011564,2]
[326914593,1715570718699,158.03,9.155e-05,2]
[326914594,1715570785800,1033.0567676,0.00010752,2]
[326914605,1715570875958,14171.31092755,0.00010752,2]
[326914606,1715570878762,1049.35070053,8.064e-05,2]
[326914609,1715570963244,945.417731,0.00010788,2]
[326914611,1715571032346,-428.20829024,0.0001084,2]
[326914613,1715571032356,-182.40170976,0.0001084,2]
[326914614,1715571032370,-27.07856987,0.0001084,2]
[326914616,1715571032380,-155.0,0.0001084,2]
[326914617,1715571032389,-117.91143013,0.00010841,2]
[326914618,1715571032401,-37.08856987,0.00010841,2]
[326914619,1715571032410,-1685.79572461,0.00010841,2]
[326914620,1715571032422,-482.99531256,0.00010841,2]
[326914621,1715571032773,-890.11976956,0.00010841,2]
[326914622,1715571032783,-1296.99408667,0.00010841,2]
[326914623,1715571032793,-200.0,0.00011339,2]
[326914624,1715571032803,-2174.88732269,0.0001134,2]
[326914625,1715571032815,-10602.38324138,0.0001134,2]
[326914626,1715571032826,-257.69726089,0.0001134,2]
[326914627,1715571032837,-661.68277074,0.0001134,2]
[326914628,1715571032849,-5174.56752334,0.0001134,2]
[326914629,1715571032861,-1578.55756815,0.0001134,2]
[326914631,1715571032872,-3041.65688029,0.0001134,2]
[326914633,1715571032884,-408.56743252,0.0001134,2]
[326914635,1715571032894,-173.31,0.00011342,2]
[326914637,1715571032904,-213.12520395,0.00011364,2]
[326914644,1715571038548,-371.91479605,0.00011364,2]
[326914648,1715571038558,-1000.0,0.00011372,2]
[326914650,1715571038568,-784.88645029,0.00011387,2]
[326914652,1715571038580,-843.083,0.00011387,2]
[326914655,1715571038592,-7220.01054971,0.00011387,2]
[326914658,1715571038601,-250.0,0.00011395,2]
[326914660,1715571038611,-182.06,0.00011401,2]
[326914662,1715571038620,-250.0,0.00011427,2]
[326914664,1715571038629,-1043.57255206,0.00011444,2]
[326914665,1715571038638,-669.82,0.00011446,2]
[326914666,1715571038648,-2127.63,0.00011448,2]
[326914667,1715571038657,-2765.1,0.00011449,2]
[326914668,1715571038666,-724.63,0.00011457,2]
[326914669,1715571038675,-465.38,0.00011459,2]
[326914670,1715571038685,-12621.75,0.00011459,2]
[326914671,1715571038694,-357.77,0.00011459,2]
[326914672,1715571038704,-752.59,0.00011559,2]
[326914673,1715571038713,-598.75,0.00011559,2]
[326914674,1715571038722,-9999.99,0.00011559,2]
[326914675,1715571038736,-156.09298751,0.00011564,2]
[326914676,1715571038745,-157.43,0.00011602,2]
[326914677,1715571038755,-219.43,0.00011606,2]
[326914678,1715571038766,-150.99,0.00011606,2]
[326914679,1715571038775,-157.43,0.00011657,2]
[326914680,1715571038785,-172.49,0.00011676,2]
[326914681,1715571038795,-157.43,0.00011711,2]
[326914682,1715571038805,-150.99,0.0001173,2]
[326914683,1715571038815,-157.43,0.00011766,2]
[326914684,1715571038826,-157.43,0.00011821,2]
[326914685,1715571038836,-157.43,0.00011876,2]
[326914686,1715571038846,-300.0,0.000119,4]
[326914687,1715571038856,-157.43,0.00011931,2]
[326914688,1715571038866,-500.0,0.0001198,2]
[326914689,1715571038877,-299.75,0.0001198,2]
[326914690,1715571038887,-432.02,0.0001198,2]
[326914691,1715571038897,-157.43,0.00011986,2]
[326914692,1715571038906,-5000.0,0.00012,2]
[326914693,1715571038916,-457.39909841,0.00012,2]
[326914694,1715571038926,-1000.0,0.00012,2]
[326914695,1715571038937,-600.0,0.00012,4]
[326914696,1715571038947,-157.43,0.00012041,2]
[326914697,1715571038956,-157.43,0.00012096,2]
[326914698,1715571038966,-900.0,0.000121,4]
[326914699,1715571038976,-157.43,0.00012151,2]
[326914700,1715571038988,-300.0,0.00012164,2]
[326914701,1715571038997,-263.50639073,0.00012164,2]
[326914702,1715571039009,-437.82360927,0.00012164,2]
[326914703,1715571039020,-420.36,0.00012164,2]
[326914704,1715571039029,-523.56,0.00012164,2]
[326914705,1715571039040,-523.56,0.00012164,2]
[326914706,1715571039050,-420.36,0.00012164,2]
[326914707,1715571039060,-420.36,0.00012164,2]
[326914708,1715571039070,-523.56,0.00012164,2]
[326914709,1715571039080,-523.56,0.00012164,2]
[326914710,1715571039091,-420.36,0.00012164,2]
[326914711,1715571039101,-420.36,0.00012164,2]
[326914712,1715571039111,-523.56,0.00012164,2]
[326914713,1715571039122,-834.45,0.00012164,2]
[326914714,1715571039132,-524.28,0.00012164,2]
[326914715,1715571039143,-840.32,0.00012164,2]
[326914716,1715571039154,-326.12,0.00012164,2]
[326914717,1715571039164,-1200.0,0.000122,4]
[326914719,1715571039174,-157.43,0.00012206,2]
[326914721,1715571039184,-1500.0,0.000123,4]
[326914723,1715571039195,-155.78,0.00012378,2]
[326914725,1715571039205,-300.0,0.000124,4]
[326914726,1715571039215,-500.0,0.00012442,2]
[326914727,1715571039225,-500.0,0.00012451,2]
[326914728,1715571039237,-500.0,0.0001246,2]
[326914729,1715571039248,-500.0,0.00012469,2]
[326914730,1715571039258,-500.0,0.00012478,2]
[326914731,1715571039268,-500.0,0.00012486,2]
[326914732,1715571039278,-500.0,0.00012495,2]
[326914733,1715571039288,-252.22435039,0.000125,2]
[326914734,1715571039298,-300.0,0.000125,4]
[326914735,1715571039308,-155.0,0.000125,2]